{"text_format":"1","workbook":"xlsx","n_sheets":5,"sheets":["Intro","LB to mL","LB to G","Seeds to mL","Seeds to G"],"not_rendered":{"charts":0,"images":3,"macros":1,"external_links":0,"defined_names":0,"comments":0,"pivot_tables":0},"unopened":[],"bounds":{"document_bytes":16777216,"sheet_cells":100000,"rows_first":2000,"rows_last":500,"rows_between":2000,"halvings":0,"cell_chars":16384,"cell_head_chars":4096},"cells_cut":0,"cells_raw":0,"read":"whole","date_system":"1900"}

{"sheet":"Intro","index":0,"n_rows":13,"n_cols":8,"rows_kept":13,"cut":false,"hidden":false,"merged":[[2,2,2,10],[3,2,3,10]]}
[]
[]
[null,null,"Oklahoma State University "]
[null,null,"Canola Grain Drill Calibration Calculator"]
[]
[null,null,null,"1. Tools and equipment needed"]
[null,null,null,"      - Clean grain drill or planter"]
[null,null,null,"      - Canola seed (actual variety and seed lot that will be used)"]
[null,null,null,"      - Tape measure"]
[null,null,null,"      - Small measuring devise (either 15 - 50 mL vial, or electric scale measuring in grams)"]
[null,null,null,"      - Jack (to raise drive wheel off the ground)"]
[null,null,null,"2. Review calibration procedure, click",null,null,null,"HERE"]
[null,null,null,"3. Select one of the four following calculators to determine how much seed to catch"]

{"sheet":"LB to mL","index":1,"n_rows":27,"n_cols":12,"rows_kept":27,"cut":false,"hidden":false,"merged":[[2,2,2,11],[3,2,3,11]]}
[]
[]
[null,null,"Canola Grain Drill Calibration Calculator"]
[null,null,"Seeding rate in LB/A using volumetric method"]
[]
[null,null,"Inputs"]
[null,null,null,"Drive tire circumference",null,null,null,null,null,null,92,"inches"]
[]
[null,null,null,"Number of tire turns",null,null,null,null,null,null,15,"turns"]
[null,null,null,null,"- Recommended 15 or more"]
[]
[null,null,null,"Row spacing",null,null,null,null,null,null,7.5,"inches"]
[]
[null,null,null,"Number of seed cups",null,null,null,null,null,null,4,"cups"]
[null,null,null,null,"- Recommended 4 per box section"]
[]
[null,null,null,"Target seeding rate",null,null,null,null,null,null,5,"lbs/acre"]
[]
[null,null,"Results"]
[null,null,null,"Amount to catch from 1 seed cup",null,null,null,null,null,null,{"$f":"((((K7/12)*(K12/12)*K9)/43560)*K17)*655.14357","v":5.4050096526342966},"mL"]
[]
[null,null,null,"Amount to catch from ",null,null,{"$f":"K14","v":4},"seed cups",null,null,{"$f":"G22*K20","v":21.620038610537186},"mL"]
[]
[null,null,"Evaluation"]
[null,null,null,"Actual amount caught from",null,null,null,null,{"$f":"K14","v":4},"seed cups",16.5,"mL"]
[]
[null,null,null,"Estimated seeding rate",null,null,null,null,null,null,{"$f":"(K17*K25)/K22","v":3.8159043786254436},"lbs/acre"]

{"sheet":"LB to G","index":2,"n_rows":27,"n_cols":12,"rows_kept":27,"cut":false,"hidden":false,"merged":[[2,2,2,11],[3,2,3,11]]}
[]
[]
[null,null,"Canola Grain Drill Calibration Calculator"]
[null,null,"Seeding rate in LB/A using weigh scale"]
[]
[null,null,"Inputs"]
[null,null,null,"Drive tire circumference",null,null,null,null,null,null,92,"inches"]
[]
[null,null,null,"Number of tire turns",null,null,null,null,null,null,15,"turns"]
[null,null,null,null,"- Recommended 15 or more"]
[]
[null,null,null,"Row spacing",null,null,null,null,null,null,7.5,"inches"]
[]
[null,null,null,"Number of seed cups",null,null,null,null,null,null,4,"cups"]
[null,null,null,null,"- Recommended 4 per box section"]
[]
[null,null,null,"Target seeding rate",null,null,null,null,null,null,5,"lbs/acre"]
[]
[null,null,"Results"]
[null,null,null,"Amount to catch from 1 seed cup",null,null,null,null,null,null,{"$f":"((((K7/12)*(K12/12)*K9)/43560)*K17)*454","v":3.7455521120293844},"grams"]
[]
[null,null,null,"Amount to catch from ",null,null,{"$f":"K14","v":4},"seed cups",null,null,{"$f":"G22*K20","v":14.982208448117538},"grams"]
[]
[null,null,"Evaluation"]
[null,null,null,"Actual amount caught from",null,null,null,null,{"$f":"K14","v":4},"seed cups",16.5,"grams"]
[]
[null,null,null,"Estimated seeding rate",null,null,null,null,null,null,{"$f":"(K17*K25)/K22","v":5.5065313158398776},"lbs/acre"]

{"sheet":"Seeds to mL","index":3,"n_rows":29,"n_cols":13,"rows_kept":29,"cut":false,"hidden":false,"merged":[[2,2,2,12],[16,10,16,11],[18,10,18,11],[28,10,28,11],[3,2,3,12]]}
[]
[]
[null,null,"Canola Grain Drill Calibration Calculator"]
[null,null,"Seeding rate in seeds/A using volumetric method"]
[]
[null,null,"Inputs"]
[null,null,null,"Drive tire circumference",null,null,null,null,null,null,null,92,"inches"]
[]
[null,null,null,"Number of tire turns",null,null,null,null,null,null,null,15,"turns"]
[null,null,null,null,"- Recommended 15 or more"]
[]
[null,null,null,"Row spacing",null,null,null,null,null,null,null,30,"inches"]
[]
[null,null,null,"Number of seed cups",null,null,null,null,null,null,null,4,"cups"]
[null,null,null,null,"- Recommended 4 per box section"]
[]
[null,null,null,"Seed size",null,null,null,null,null,null,67000,null,"seeds/lb"]
[]
[null,null,null,"Target seeding rate",null,null,null,null,null,null,167500,null,"seeds/A"]
[]
[null,null,"Results"]
[null,null,null,"Amount to catch from 1 seed cup",null,null,null,null,null,null,null,{"$f":"((((L7/12)*(L12/12)*L9)/43560)*(K19/K17)*655.14357)","v":10.810019305268593},"mL"]
[]
[null,null,null,"Amount to catch from ",null,null,{"$f":"L14","v":4},"seed cups",null,null,null,{"$f":"G24*L22","v":43.240077221074372},"mL"]
[]
[null,null,"Evaluation"]
[null,null,null,"Actual amount caught from",null,null,null,null,{"$f":"L14","v":4},"seed cups",null,40,"mL"]
[]
[null,null,null,"Estimated seeding rate",null,null,null,null,null,null,{"$f":"(K19*L27)/L24","v":154948.8444653968},null,"seeds/A"]

{"sheet":"Seeds to G","index":4,"n_rows":29,"n_cols":13,"rows_kept":29,"cut":false,"hidden":false,"merged":[[2,2,2,12],[3,2,3,12],[16,10,16,11],[18,10,18,11],[28,10,28,11]]}
[]
[]
[null,null,"Canola Grain Drill Calibration Calculator"]
[null,null,"Seeding rate in seeds/A using weigh scale"]
[]
[null,null,"Inputs"]
[null,null,null,"Drive tire circumference",null,null,null,null,null,null,null,92,"inches"]
[]
[null,null,null,"Number of tire turns",null,null,null,null,null,null,null,15,"turns"]
[null,null,null,null,"- Recommended 15 or more"]
[]
[null,null,null,"Row spacing",null,null,null,null,null,null,null,30,"inches"]
[]
[null,null,null,"Number of seed cups",null,null,null,null,null,null,null,4,"cups"]
[null,null,null,null,"- Recommended 4 per box section"]
[]
[null,null,null,"Seed size",null,null,null,null,null,null,67000,null,"seeds/lb"]
[]
[null,null,null,"Target seeding rate",null,null,null,null,null,null,167500,null,"seeds/A"]
[]
[null,null,"Results"]
[null,null,null,"Amount to catch from 1 seed cup",null,null,null,null,null,null,null,{"$f":"((((L7/12)*(L12/12)*L9)/43560)*(K19/K17)*454)","v":7.4911042240587689},"grams"]
[]
[null,null,null,"Amount to catch from ",null,null,{"$f":"L14","v":4},"seed cups",null,null,null,{"$f":"G24*L22","v":29.964416896235075},"grams"]
[]
[null,null,"Evaluation"]
[null,null,null,"Actual amount caught from",null,null,null,null,{"$f":"L14","v":4},"seed cups",null,28,"grams"]
[]
[null,null,null,"Estimated seeding rate",null,null,null,null,null,null,{"$f":"(K19*L27)/L24","v":156518.98103811531},null,"seeds/A"]